[Event "FIDE U16 Olympiad_boards_81-124"]
[Site "Eindhoven, Netherlands"]
[Date "2023.08.14"]
[Round "3.1"]
[White "Bourg, Nicolas"]
[Black "Elias, David"]
[Result "1/2-1/2"]
[TimeControl "45min+10sec"]
[WhiteElo "1896"]
[BlackElo "1884"]

1. e4 {[%clk 00:45:11]} {[%emt 00:00:08]} c5 {[%clk 00:45:16]} {[%emt
00:00:04]} 2. Nf3 {[%clk 00:45:19]} {[%emt 00:00:02]} Nc6 {[%clk 00:45:23]}
{[%emt 00:00:03]} 3. d4 {[%clk 00:45:28]} {[%emt 00:00:01]} cxd4 {[%clk
00:45:32]} {[%emt 00:00:02]} 4. Nxd4 {[%clk 00:45:36]} {[%emt 00:00:02]} g6
{[%clk 00:45:29]} {[%emt 00:00:13]} 5. c4 {[%clk 00:45:04]} {[%emt 00:00:42]}
Bg7 {[%clk 00:45:32]} {[%emt 00:00:06]} 6. Nxc6 {[%clk 00:45:12]} {[%emt
00:00:03]} bxc6 {[%clk 00:45:26]} {[%emt 00:00:16]} 7. Nc3 {[%clk 00:44:48]}
{[%emt 00:00:34]} Rb8 {[%clk 00:44:48]} {[%emt 00:00:48]} 8. Qc2 {[%clk
00:44:32]} {[%emt 00:00:25]} Nf6 {[%clk 00:44:10]} {[%emt 00:00:48]} 9. Bf4
{[%clk 00:43:46]} {[%emt 00:00:55]} d6 {[%clk 00:44:06]} {[%emt 00:00:14]} 10.
Be2 {[%clk 00:43:41]} {[%emt 00:00:16]} Qa5 {[%clk 00:42:01]} {[%emt 00:02:16]}
11. O-O {[%clk 00:43:15]} {[%emt 00:00:34]} O-O {[%clk 00:41:55]} {[%emt
00:00:17]} 12. a3 {[%clk 00:43:14]} {[%emt 00:00:12]} e5 {[%clk 00:39:53]}
{[%emt 00:02:11]} 13. b4 {[%clk 00:43:13]} {[%emt 00:00:11]} Qc7 {[%clk
00:39:49]} {[%emt 00:00:15]} 14. Bg3 {[%clk 00:42:45]} {[%emt 00:00:37]} a5
{[%clk 00:38:14]} {[%emt 00:01:46]} 15. Rab1 {[%clk 00:42:20]} {[%emt
00:00:35]} axb4 {[%clk 00:38:09]} {[%emt 00:00:15]} 16. axb4 {[%clk 00:42:26]}
{[%emt 00:00:03]} d5 {[%clk 00:37:19]} {[%emt 00:01:01]} 17. Rb2 {[%clk
00:37:45]} {[%emt 00:04:51]} Nxe4 {[%clk 00:36:20]} {[%emt 00:01:09]} 18. cxd5
{[%clk 00:35:32]} {[%emt 00:02:22]} cxd5 {[%clk 00:35:35]} {[%emt 00:00:56]} 19.
Nxd5 {[%clk 00:34:57]} {[%emt 00:00:45]} Qxc2 {[%clk 00:35:41]} {[%emt
00:00:04]} 20. Rxc2 {[%clk 00:35:05]} {[%emt 00:00:01]} Be6 {[%clk 00:33:52]}
{[%emt 00:01:58]} 21. Ne7+ {[%clk 00:34:07]} {[%emt 00:01:10]} Kh8 {[%clk
00:34:01]} {[%emt 00:00:01]} 22. Nc6 {[%clk 00:34:14]} {[%emt 00:00:03]} Nxg3
{[%clk 00:33:07]} {[%emt 00:01:04]} 23. hxg3 {[%clk 00:34:14]} {[%emt
00:00:10]} Rb6 {[%clk 00:33:01]} {[%emt 00:00:15]} 24. Ra1 {[%clk 00:32:56]}
{[%emt 00:01:29]} Rc8 {[%clk 00:30:27]} {[%emt 00:02:39]} 25. Ra6 {[%clk
00:32:12]} {[%emt 00:00:57]} Rb7 {[%clk 00:27:45]} {[%emt 00:02:53]} 26. Rd2
{[%clk 00:27:06]} {[%emt 00:05:17]} e4 {[%clk 00:25:42]} {[%emt 00:02:10]} 27.
Rd8+ {[%clk 00:25:58]} {[%emt 00:01:20]} Rxd8 {[%clk 00:22:34]} {[%emt
00:03:18]} 28. Nxd8 {[%clk 00:26:04]} {[%emt 00:00:04]} Rb8 {[%clk 00:22:24]}
{[%emt 00:00:19]} 29. Nxe6 {[%clk 00:26:09]} {[%emt 00:00:07]} fxe6 {[%clk
00:22:27]} {[%emt 00:00:07]} 30. Rxe6 {[%clk 00:26:16]} {[%emt 00:00:03]} Bd4
{[%clk 00:21:20]} {[%emt 00:01:17]} 31. b5 {[%clk 00:26:23]} {[%emt 00:00:03]}
Rf8 {[%clk 00:21:20]} {[%emt 00:00:09]} 32. Rxe4 {[%clk 00:25:14]} {[%emt
00:01:20]} Bxf2+ {[%clk 00:19:48]} {[%emt 00:01:42]} 33. Kh2 {[%clk 00:25:21]}
{[%emt 00:00:02]} Kg7 {[%clk 00:19:08]} {[%emt 00:00:50]} 34. Rf4 {[%clk
00:22:30]} {[%emt 00:03:01]} Be3 {[%clk 00:18:41]} {[%emt 00:00:37]} 35. Re4
{[%clk 00:22:10]} {[%emt 00:00:31]} Bf2 {[%clk 00:18:43]} {[%emt 00:00:08]} 36.
Bc4 {[%clk 00:21:50]} {[%emt 00:00:29]} Rf6 {[%clk 00:15:47]} {[%emt 00:03:06]}
37. Re7+ {[%clk 00:21:52]} {[%emt 00:00:09]} Kh8 {[%clk 00:15:28]} {[%emt
00:00:27]} 38. g4 {[%clk 00:20:17]} {[%emt 00:01:47]} h6 {[%clk 00:14:47]}
{[%emt 00:00:50]} 39. Kh3 {[%clk 00:16:27]} {[%emt 00:04:00]} Bb6 {[%clk
00:13:24]} {[%emt 00:01:32]} 40. Bd3 {[%clk 00:12:21]} {[%emt 00:04:16]} Kg8
{[%clk 00:11:39]} {[%emt 00:01:55]} 41. g5 {[%clk 00:11:01]} {[%emt 00:01:32]}
hxg5 {[%clk 00:10:54]} {[%emt 00:00:55]} 42. Kg4 {[%clk 00:09:12]} {[%emt
00:01:59]} Kf8 {[%clk 00:10:03]} {[%emt 00:01:00]} 43. Re5 {[%clk 00:05:36]}
{[%emt 00:03:47]} Bd8 {[%clk 00:09:03]} {[%emt 00:01:06]} 44. g3 {[%clk
00:05:03]} {[%emt 00:00:47]} Rd6 {[%clk 00:07:08]} {[%emt 00:02:04]} 45. Be4
{[%clk 00:04:25]} {[%emt 00:00:48]} Kf7 {[%clk 00:04:52]} {[%emt 00:02:24]} 46.
Bd5+ {[%clk 00:03:18]} {[%emt 00:01:19]} Kf6 {[%clk 00:03:58]} {[%emt
00:01:00]} 47. Rxg5 {[%clk 00:03:20]} {[%emt 00:00:12]} Ba5 {[%clk 00:02:48]}
{[%emt 00:01:20]} 48. Be4 {[%clk 00:03:14]} {[%emt 00:00:16]} Rd4 {[%clk
00:02:04]} {[%emt 00:00:55]} 49. Rxg6+ {[%clk 00:03:08]} {[%emt 00:00:16]} Ke5
{[%clk 00:01:15]} {[%emt 00:00:58]} 50. Kf3 {[%clk 00:03:02]} {[%emt 00:00:16]}
Rxe4 {[%emt 00:02:09]} 51. Re6+ {[%clk 00:01:15]} Kxe6 {[%clk 00:01:18]} {[%emt
00:00:04]} 52. Kxe4 {[%emt 00:00:09]} 1/2-1/2

[Event "FIDE U16 Olympiad_boards_81-124"]
[Site "Eindhoven, Netherlands"]
[Date "2023.08.14"]
[Round "3.2"]
[White "Skreko, Igor"]
[Black "Zaccaria, Noa"]
[Result "1-0"]
[TimeControl "45min+10sec"]
[WhiteElo "1985"]
[BlackElo "1496"]

1. d4 {[%clk 00:45:16]} {[%emt 00:00:04]} d5 {[%clk 00:45:19]} {[%emt
00:00:02]} 2. c4 {[%clk 00:45:25]} {[%emt 00:00:01]} c6 {[%clk 00:45:28]} 3.
Nf3 {[%clk 00:45:34]} {[%emt 00:00:01]} Nf6 {[%clk 00:45:37]} 4. e3 {[%clk
00:45:43]} {[%emt 00:00:01]} Bf5 {[%clk 00:45:45]} {[%emt 00:00:01]} 5. Nc3
{[%clk 00:45:52]} {[%emt 00:00:02]} e6 {[%clk 00:45:54]} 6. Nh4 {[%clk
00:46:01]} {[%emt 00:00:01]} Bg6 {[%clk 00:46:03]} {[%emt 00:00:01]} 7. Nxg6
{[%clk 00:46:10]} {[%emt 00:00:02]} hxg6 {[%clk 00:46:11]} {[%emt 00:00:01]} 8.
Bd2 {[%clk 00:45:54]} {[%emt 00:00:26]} Nbd7 {[%clk 00:46:20]} {[%emt
00:00:01]} 9. Qb3 {[%clk 00:46:02]} {[%emt 00:00:02]} Qc7 {[%clk 00:46:26]}
{[%emt 00:00:04]} 10. g3 {[%clk 00:46:11]} {[%emt 00:00:02]} Be7 {[%clk
00:46:01]} {[%emt 00:00:34]} 11. Bg2 {[%clk 00:46:09]} {[%emt 00:00:12]} O-O
{[%clk 00:44:21]} {[%emt 00:01:50]} 12. O-O {[%clk 00:46:07]} {[%emt 00:00:12]}
a6 {[%clk 00:44:21]} {[%emt 00:00:10]} 13. f3 {[%clk 00:42:38]} {[%emt
00:03:39]} Rad8 {[%clk 00:36:38]} {[%emt 00:07:53]} 14. Rad1 {[%clk 00:41:09]}
{[%emt 00:01:39]} Rfe8 {[%clk 00:31:11]} {[%emt 00:05:37]} 15. Bc1 {[%clk
00:40:44]} {[%emt 00:00:34]} dxc4 {[%clk 00:29:39]} {[%emt 00:01:43]} 16. Qxc4
{[%clk 00:40:51]} {[%emt 00:00:03]} b5 {[%clk 00:29:45]} {[%emt 00:00:04]} 17.
Qe2 {[%clk 00:37:09]} {[%emt 00:03:52]} c5 {[%clk 00:29:48]} {[%emt 00:00:06]}
18. d5 {[%clk 00:34:45]} {[%emt 00:02:35]} exd5 {[%clk 00:26:01]} {[%emt
00:03:57]} 19. Nxd5 {[%clk 00:34:52]} {[%emt 00:00:02]} Nxd5 {[%clk 00:25:40]}
{[%emt 00:00:31]} 20. Rxd5 {[%clk 00:35:01]} {[%emt 00:00:01]} Nb6 {[%clk
00:25:41]} {[%emt 00:00:10]} 21. Rxd8 {[%clk 00:34:56]} {[%emt 00:00:15]} Rxd8
{[%clk 00:25:45]} {[%emt 00:00:06]} 22. e4 {[%clk 00:33:40]} {[%emt 00:01:26]}
g5 {[%clk 00:24:34]} {[%emt 00:01:21]} 23. f4 {[%clk 00:31:19]} {[%emt
00:02:31]} gxf4 {[%clk 00:24:38]} {[%emt 00:00:06]} 24. gxf4 {[%clk 00:31:02]}
{[%emt 00:00:26]} c4 {[%clk 00:23:44]} {[%emt 00:01:04]} 25. Kh1 {[%clk
00:28:50]} {[%emt 00:02:23]} Nd7 {[%emt 00:03:40]} 26. Rg1 {[%clk 00:24:35]}
{[%emt 00:04:22]} Bc5 {[%clk 00:18:41]} {[%emt 00:01:45]} 27. Be3 {[%clk
00:24:36]} {[%emt 00:00:10]} Bxe3 {[%clk 00:18:35]} {[%emt 00:00:16]} 28. Qxe3
{[%clk 00:24:45]} {[%emt 00:00:01]} Nf8 {[%clk 00:18:24]} {[%emt 00:00:21]} 29.
e5 {[%clk 00:22:33]} {[%emt 00:02:22]} Rd3 {[%clk 00:17:40]} {[%emt 00:00:54]}
30. Qe1 {[%clk 00:21:46]} {[%emt 00:00:57]} Qd8 {[%clk 00:15:18]} {[%emt
00:02:32]} 31. f5 {[%clk 00:20:28]} {[%emt 00:01:28]} Qd4 {[%clk 00:12:05]}
{[%emt 00:03:22]} 32. e6 {[%clk 00:18:45]} {[%emt 00:01:53]} fxe6 {[%clk
00:10:53]} {[%emt 00:01:23]} 33. fxe6 {[%clk 00:18:20]} {[%emt 00:00:34]} Re3
{[%clk 00:05:28]} {[%emt 00:05:36]} 34. e7 {[%clk 00:17:59]} {[%emt 00:00:31]}
Qe5 {[%clk 00:05:31]} {[%emt 00:00:07]} 35. exf8=Q+ {[%clk 00:17:52]} {[%emt
00:00:17]} Kxf8 {[%clk 00:05:40]} {[%emt 00:00:01]} 36. Rf1+ {[%clk 00:16:49]}
{[%emt 00:01:13]} Kg8 {[%clk 00:05:36]} {[%emt 00:00:14]} 37. Qd1 {[%clk
00:14:13]} {[%emt 00:02:46]} Rd3 {[%clk 00:04:05]} {[%emt 00:01:41]} 38. Qg4
{[%clk 00:14:15]} {[%emt 00:00:08]} Rd2 {[%clk 00:02:23]} {[%emt 00:01:51]} 39.
Qh4 {[%clk 00:09:47]} {[%emt 00:04:39]} Qxb2 {[%clk 00:01:43]} {[%emt
00:00:50]} 40. Be4 {[%clk 00:09:20]} {[%emt 00:00:37]} g6 {[%clk 00:01:08]}
{[%emt 00:00:45]} 41. Bxg6 {[%clk 00:08:49]} {[%emt 00:00:41]} Rd7 {[%clk
00:00:54]} {[%emt 00:00:24]} 42. Qg4 {[%clk 00:08:27]} {[%emt 00:00:32]} Qg7
{[%clk 00:00:22]} {[%emt 00:00:42]} 43. Qe6+ {[%clk 00:08:27]} {[%emt
00:00:10]} Kh8 {[%clk 00:00:20]} {[%emt 00:00:12]} 44. Qe8+ {[%clk 00:08:26]}
{[%emt 00:00:11]} Qg8 {[%clk 00:00:18]} {[%emt 00:00:12]} 45. Qxd7 {[%clk
00:08:16]} {[%emt 00:00:20]} 1-0

[Event "FIDE U16 Olympiad_boards_81-124"]
[Site "Eindhoven, Netherlands"]
[Date "2023.08.14"]
[Round "3.3"]
[White "Ortiz Bogdanov, Pablo"]
[Black "Rakovsky, Jakub"]
[Result "0-1"]
[TimeControl "45min+10sec"]
[WhiteElo "1484"]
[BlackElo "1860"]

1. e4 {[%clk 00:45:19]} c5 {[%clk 00:44:49]} {[%emt 00:00:31]} 2. Nf3 {[%clk
00:45:27]} {[%emt 00:00:03]} Nc6 {[%clk 00:44:49]} {[%emt 00:00:10]} 3. Bb5
{[%clk 00:45:34]} {[%emt 00:00:04]} g6 {[%clk 00:44:05]} {[%emt 00:00:53]} 4.
O-O {[%clk 00:45:35]} {[%emt 00:00:08]} Bg7 {[%clk 00:44:01]} {[%emt 00:00:14]}
5. Re1 {[%clk 00:45:34]} {[%emt 00:00:12]} a6 {[%clk 00:43:02]} {[%emt
00:01:09]} 6. Bf1 {[%clk 00:45:41]} {[%emt 00:00:02]} e6 {[%clk 00:42:42]}
{[%emt 00:00:31]} 7. c3 {[%clk 00:45:42]} {[%emt 00:00:09]} d5 {[%clk
00:40:27]} {[%emt 00:02:25]} 8. e5 {[%clk 00:39:36]} {[%emt 00:06:16]} d4
{[%clk 00:37:28]} {[%emt 00:03:08]} 9. d3 {[%clk 00:38:52]} {[%emt 00:00:54]}
Nge7 {[%clk 00:33:44]} {[%emt 00:03:54]} 10. Bg5 {[%clk 00:36:30]} {[%emt
00:02:32]} h6 {[%clk 00:33:17]} {[%emt 00:00:37]} 11. Bxe7 {[%clk 00:35:57]}
{[%emt 00:00:43]} Qxe7 {[%clk 00:32:41]} {[%emt 00:00:47]} 12. Nbd2 {[%clk
00:35:18]} {[%emt 00:00:48]} g5 {[%clk 00:27:26]} {[%emt 00:05:25]} 13. h3
{[%clk 00:27:11]} {[%emt 00:08:17]} h5 {[%clk 00:24:57]} {[%emt 00:02:39]} 14.
cxd4 {[%clk 00:22:55]} {[%emt 00:04:27]} g4 {[%clk 00:22:15]} {[%emt 00:02:51]}
15. hxg4 {[%clk 00:19:46]} {[%emt 00:03:19]} hxg4 {[%clk 00:22:13]} {[%emt
00:00:13]} 16. dxc5 {[%clk 00:16:47]} {[%emt 00:03:09]} gxf3 {[%clk 00:17:54]}
{[%emt 00:04:29]} 17. Nxf3 {[%clk 00:16:52]} {[%emt 00:00:05]} Qxc5 {[%clk
00:16:24]} {[%emt 00:01:40]} 18. d4 {[%clk 00:16:49]} {[%emt 00:00:11]} Qf8
{[%clk 00:14:56]} {[%emt 00:01:39]} 19. Bc4 {[%clk 00:16:11]} {[%emt 00:00:49]}
Bd7 {[%clk 00:13:41]} {[%emt 00:01:24]} 20. d5 {[%clk 00:15:09]} {[%emt
00:01:13]} exd5 {[%clk 00:13:40]} {[%emt 00:00:11]} 21. Qxd5 {[%clk 00:14:39]}
{[%emt 00:00:40]} Be6 {[%clk 00:12:40]} {[%emt 00:01:09]} 22. Qe4 {[%clk
00:14:48]} Bxc4 {[%clk 00:12:05]} {[%emt 00:00:46]} 23. Qxc4 {[%clk 00:14:56]}
{[%emt 00:00:01]} O-O-O {[%clk 00:12:00]} {[%emt 00:00:15]} 24. Ng5 {[%clk
00:12:21]} {[%emt 00:02:46]} Rd4 {[%clk 00:09:02]} {[%emt 00:03:08]} 25. Qc2
{[%clk 00:11:56]} {[%emt 00:00:34]} Rdh4 {[%clk 00:08:28]} {[%emt 00:00:45]} 26.
Qf5+ {[%clk 00:11:22]} {[%emt 00:00:44]} Kb8 {[%clk 00:08:28]} {[%emt
00:00:10]} 27. f4 {[%clk 00:11:17]} {[%emt 00:00:14]} Qc5+ {[%clk 00:08:07]}
{[%emt 00:00:31]} 28. Kf1 {[%clk 00:11:21]} {[%emt 00:00:06]} Rh1+ {[%clk
00:08:15]} {[%emt 00:00:02]} 29. Ke2 {[%clk 00:11:28]} {[%emt 00:00:03]} Nd4+
{[%clk 00:08:17]} {[%emt 00:00:09]} 0-1

[Event "FIDE U16 Olympiad_boards_81-124"]
[Site "Eindhoven, Netherlands"]
[Date "2023.08.14"]
[Round "3.4"]
[White "Tomcaniova, Lucia"]
[Black "Reding, Sevda"]
[Result "1-0"]
[TimeControl "45min+10sec"]
[WhiteElo "1668"]
[BlackElo "1237"]

1. e4 {[%clk 00:45:16]} {[%emt 00:00:03]} c5 {[%clk 00:45:19]} {[%emt
00:00:02]} 2. c3 {[%clk 00:45:09]} {[%emt 00:00:17]} d5 {[%clk 00:45:20]}
{[%emt 00:00:09]} 3. exd5 {[%clk 00:45:14]} {[%emt 00:00:05]} Qxd5 {[%clk
00:45:27]} {[%emt 00:00:03]} 4. Nf3 {[%clk 00:44:36]} {[%emt 00:00:46]} Bg4
{[%clk 00:45:33]} {[%emt 00:00:06]} 5. Be2 {[%clk 00:44:43]} {[%emt 00:00:03]}
e6 {[%clk 00:45:16]} {[%emt 00:00:27]} 6. Na3 {[%clk 00:44:30]} {[%emt
00:00:21]} a6 {[%clk 00:44:21]} {[%emt 00:01:07]} 7. Qa4+ {[%clk 00:42:35]}
{[%emt 00:02:04]} b5 {[%clk 00:33:00]} {[%emt 00:11:32]} 8. Qxg4 {[%clk
00:41:39]} {[%emt 00:01:05]} Nf6 {[%clk 00:26:26]} {[%emt 00:06:44]} 9. Qg5
{[%clk 00:40:16]} {[%emt 00:01:34]} Qc6 {[%clk 00:25:22]} {[%emt 00:01:15]} 10.
d4 {[%clk 00:30:57]} {[%emt 00:09:28]} c4 {[%clk 00:23:54]} {[%emt 00:01:38]}
11. Ne5 {[%clk 00:29:25]} {[%emt 00:01:41]} Qc8 {[%clk 00:18:00]} {[%emt
00:06:04]} 12. Bf3 {[%clk 00:26:47]} {[%emt 00:02:49]} h6 {[%clk 00:16:36]}
{[%emt 00:01:34]} 13. Qe3 {[%clk 00:24:58]} {[%emt 00:01:57]} Ra7 {[%clk
00:16:31]} {[%emt 00:00:17]} 14. Qe2 {[%clk 00:24:18]} {[%emt 00:00:49]} Be7
{[%clk 00:15:49]} {[%emt 00:00:53]} 15. Be3 {[%clk 00:22:21]} {[%emt 00:02:06]}
Rc7 {[%clk 00:14:57]} {[%emt 00:01:03]} 16. Bf4 {[%clk 00:20:37]} {[%emt
00:01:53]} Ra7 {[%clk 00:15:03]} {[%emt 00:00:04]} 17. h4 {[%clk 00:18:36]}
{[%emt 00:02:11]} Nfd7 {[%clk 00:13:09]} {[%emt 00:02:05]} 18. Nc2 {[%clk
00:17:31]} {[%emt 00:01:15]} Nxe5 {[%clk 00:12:47]} {[%emt 00:00:32]} 19. Bxe5
{[%clk 00:17:25]} {[%emt 00:00:16]} f6 {[%clk 00:12:54]} {[%emt 00:00:03]} 20.
Bh5+ {[%clk 00:17:07]} {[%emt 00:00:27]} Kf8 {[%clk 00:11:31]} {[%emt
00:01:34]} 21. Bg3 {[%clk 00:16:15]} {[%emt 00:01:00]} Nc6 {[%clk 00:08:54]}
{[%emt 00:02:48]} 22. Bf3 {[%clk 00:14:08]} {[%emt 00:02:17]} Kf7 {[%clk
00:07:44]} {[%emt 00:01:20]} 23. d5 {[%clk 00:12:34]} {[%emt 00:01:45]} exd5
{[%clk 00:06:48]} {[%emt 00:01:05]} 24. Bxd5+ {[%clk 00:12:25]} {[%emt
00:00:18]} Kf8 {[%clk 00:04:43]} {[%emt 00:02:16]} 25. Qf3 {[%clk 00:09:59]}
{[%emt 00:02:36]} Nd8 {[%clk 00:04:18]} {[%emt 00:00:36]} 26. Nd4 {[%clk
00:07:52]} {[%emt 00:02:16]} b4 {[%clk 00:03:08]} {[%emt 00:01:21]} 27. h5
{[%clk 00:05:47]} {[%emt 00:02:15]} Bc5 {[%clk 00:01:34]} {[%emt 00:01:43]} 28.
Nf5 {[%clk 00:04:57]} {[%emt 00:01:00]} Nf7 {[%clk 00:00:43]} {[%emt 00:01:01]}
29. Nh4 {[%clk 00:04:33]} {[%emt 00:00:34]} Qe8+ {[%clk 00:00:25]} {[%emt
00:00:29]} 30. Qe2 {[%clk 00:03:24]} {[%emt 00:01:19]} 1-0

[Event "FIDE U16 Olympiad_boards_81-124"]
[Site "Eindhoven, Netherlands"]
[Date "2023.08.14"]
[Round "3.5"]
[White "Fu, Yihe"]
[Black "Altynbekuly, Madiyar"]
[Result "1/2-1/2"]
[TimeControl "45min+10sec"]
[WhiteElo "2097"]
[BlackElo "1750"]

1. e4 {[%clk 00:45:18]} {[%emt 00:00:01]} c5 {[%clk 00:45:16]} {[%emt
00:00:04]} 2. Nf3 {[%clk 00:45:27]} {[%emt 00:00:01]} d6 {[%clk 00:45:16]}
{[%emt 00:00:11]} 3. d4 {[%clk 00:45:36]} {[%emt 00:00:02]} cxd4 {[%clk
00:45:24]} {[%emt 00:00:01]} 4. Nxd4 {[%clk 00:45:45]} {[%emt 00:00:01]} Nf6
{[%clk 00:45:33]} 5. Nc3 {[%clk 00:45:54]} Nc6 {[%clk 00:45:41]} {[%emt
00:00:02]} 6. Bc4 {[%clk 00:45:48]} {[%emt 00:00:16]} Qb6 {[%clk 00:45:16]}
{[%emt 00:00:35]} 7. Nb3 {[%clk 00:45:15]} {[%emt 00:00:42]} e6 {[%clk
00:45:11]} {[%emt 00:00:14]} 8. Be3 {[%clk 00:44:31]} {[%emt 00:00:56]} Qc7
{[%clk 00:45:13]} {[%emt 00:00:08]} 9. O-O {[%clk 00:43:27]} {[%emt 00:01:13]}
Be7 {[%clk 00:45:15]} {[%emt 00:00:07]} 10. f4 {[%clk 00:43:12]} {[%emt
00:00:26]} a6 {[%clk 00:43:11]} {[%emt 00:02:15]} 11. Qf3 {[%clk 00:41:03]}
{[%emt 00:02:18]} b5 {[%clk 00:39:17]} {[%emt 00:04:05]} 12. Be2 {[%clk
00:41:11]} {[%emt 00:00:02]} Bb7 {[%clk 00:38:11]} {[%emt 00:01:16]} 13. a3
{[%clk 00:41:15]} {[%emt 00:00:05]} Rc8 {[%clk 00:34:23]} {[%emt 00:03:58]} 14.
Qg3 {[%clk 00:41:02]} {[%emt 00:00:23]} O-O {[%clk 00:27:42]} {[%emt 00:06:50]}
15. Bd3 {[%clk 00:34:02]} {[%emt 00:07:11]} Kh8 {[%clk 00:19:50]} {[%emt
00:08:04]} 16. Qh3 {[%clk 00:33:18]} {[%emt 00:00:52]} b4 {[%clk 00:17:31]}
{[%emt 00:02:30]} 17. Ne2 {[%clk 00:25:41]} {[%emt 00:07:46]} e5 {[%clk
00:16:44]} {[%emt 00:00:58]} 18. Ng3 {[%clk 00:24:27]} {[%emt 00:01:23]} bxa3
{[%clk 00:14:25]} {[%emt 00:02:30]} 19. bxa3 {[%clk 00:24:03]} {[%emt
00:00:34]} exf4 {[%clk 00:12:56]} {[%emt 00:01:39]} 20. Bxf4 {[%clk 00:24:09]}
{[%emt 00:00:04]} Ne5 {[%clk 00:12:59]} {[%emt 00:00:07]} 21. Nf5 {[%clk
00:22:07]} {[%emt 00:02:12]} Bxe4 {[%clk 00:09:38]} {[%emt 00:03:31]} 22. Bxe4
{[%clk 00:21:42]} {[%emt 00:00:35]} Nxe4 {[%clk 00:09:45]} {[%emt 00:00:03]} 23.
Bxe5 {[%clk 00:21:45]} {[%emt 00:00:06]} dxe5 {[%clk 00:09:53]} {[%emt
00:00:03]} 24. Qg4 {[%clk 00:21:54]} {[%emt 00:00:01]} Ng5 {[%clk 00:10:02]}
{[%emt 00:00:01]} 25. Rad1 {[%clk 00:18:22]} {[%emt 00:03:41]} Bf6 {[%clk
00:09:53]} {[%emt 00:00:20]} 26. Rf2 {[%clk 00:14:39]} {[%emt 00:03:52]} Qc4
{[%clk 00:09:12]} {[%emt 00:00:52]} 27. Qh5 {[%clk 00:12:45]} {[%emt 00:02:04]}
Rcd8 {[%clk 00:07:01]} {[%emt 00:02:22]} 28. Rdf1 {[%clk 00:10:57]} {[%emt
00:01:57]} Ne6 {[%clk 00:03:33]} {[%emt 00:03:38]} 29. Ne3 {[%clk 00:10:28]}
{[%emt 00:00:38]} Qc3 {[%clk 00:02:32]} {[%emt 00:01:12]} 30. Ng4 {[%clk
00:09:00]} {[%emt 00:01:38]} g6 {[%clk 00:02:39]} {[%emt 00:00:03]} 31. Qh3
{[%clk 00:08:31]} {[%emt 00:00:39]} Qxh3 {[%clk 00:02:47]} {[%emt 00:00:02]} 32.
gxh3 {[%clk 00:08:40]} {[%emt 00:00:01]} Bh4 {[%clk 00:02:31]} {[%emt
00:00:25]} 33. Rxf7 {[%clk 00:07:21]} {[%emt 00:01:30]} Rxf7 {[%clk 00:02:40]}
{[%emt 00:00:01]} 34. Rxf7 {[%clk 00:07:30]} {[%emt 00:00:02]} Nf4 {[%clk
00:02:48]} {[%emt 00:00:01]} 35. Ne3 {[%clk 00:06:54]} {[%emt 00:00:45]} Rc8
{[%clk 00:01:43]} {[%emt 00:01:17]} 36. c4 {[%clk 00:04:41]} {[%emt 00:02:22]}
Bg5 {[%clk 00:00:37]} {[%emt 00:01:16]} 37. Ng4 {[%clk 00:01:20]} {[%emt
00:03:31]} Nxh3+ {[%clk 00:00:11]} {[%emt 00:00:37]} 38. Kf1 {[%clk 00:01:14]}
{[%emt 00:00:16]} Rxc4 {[%clk 00:00:20]} 39. Nxe5 {[%clk 00:01:22]} {[%emt
00:00:01]} Rc3 {[%clk 00:00:30]} 40. Nd4 {[%clk 00:01:21]} {[%emt 00:00:11]}
Rxa3 {[%clk 00:00:37]} {[%emt 00:00:03]} 41. Ne6 {[%clk 00:01:16]} {[%emt
00:00:14]} Bh6 {[%clk 00:00:35]} {[%emt 00:00:12]} 42. Ng4 {[%clk 00:00:21]}
{[%emt 00:01:06]} Ng5 {[%clk 00:00:32]} {[%emt 00:00:14]} 43. Nxh6 {[%clk
00:00:19]} {[%emt 00:00:11]} Nxe6 {[%clk 00:00:32]} {[%emt 00:00:09]} 44. Re7
{[%clk 00:00:19]} {[%emt 00:00:10]} Rh3 {[%clk 00:00:18]} {[%emt 00:00:25]} 45.
Ng4 {[%clk 00:00:13]} {[%emt 00:00:16]} Nf4 {[%clk 00:00:27]} 46. Kg1 {[%clk
00:00:13]} {[%emt 00:00:10]} Kg8 {[%clk 00:00:23]} {[%emt 00:00:15]} 47. Ra7
{[%clk 00:00:19]} {[%emt 00:00:04]} Rh4 {[%clk 00:00:18]} {[%emt 00:00:15]} 48.
Nf6+ {[%clk 00:00:26]} {[%emt 00:00:02]} Kf8 {[%clk 00:00:25]} 49. Nxh7+ {[%clk
00:00:33]} {[%emt 00:00:06]} Ke8 {[%clk 00:00:31]} {[%emt 00:00:03]} 50. Nf6+
{[%clk 00:00:42]} Kd8 {[%clk 00:00:38]} {[%emt 00:00:04]} 51. Rxa6 {[%clk
00:00:49]} {[%emt 00:00:02]} Ke7 {[%clk 00:00:45]} {[%emt 00:00:03]} 52. Ne4
{[%clk 00:00:43]} {[%emt 00:00:17]} Ne2+ {[%clk 00:00:53]} {[%emt 00:00:02]} 53.
Kf2 {[%clk 00:00:52]} Rxe4 {[%clk 00:01:01]} {[%emt 00:00:02]} 54. Rxg6 {[%clk
00:01:01]} Rh4 {[%clk 00:00:58]} {[%emt 00:00:13]} 55. Kxe2 {[%clk 00:01:08]}
{[%emt 00:00:03]} Rxh2+ {[%clk 00:01:06]} {[%emt 00:00:02]} 1/2-1/2